fUSD/lending_fUSD_20260630
["ID","MTS","AMOUNT","RATE_DAILY","PERIOD"]
[426783874,1782829080000,200.0,9.696e-05,7]
[426783875,1782829081000,320.41,9.696e-05,7]
[426783878,1782829102000,-304.24,9.658e-05,2]
[426783877,1782829102000,-304.24,9.614e-05,2]
[426783880,1782829102000,-500.0,9.687e-05,2]
[426783879,1782829102000,-500.0,9.687e-05,2]
[426783881,1782829102000,-500.0,9.687e-05,2]
[426783883,1782829102000,-500.0,9.687e-05,2]
[426783887,1782829102000,-500.0,9.687e-05,2]
[426783885,1782829102000,-462.19991624,9.687e-05,2]
[426783884,1782829102000,-500.0,9.687e-05,2]
[426783886,1782829102000,-500.0,9.687e-05,2]
[426783888,1782829102000,-307.52954286,9.689e-05,2]
[426783882,1782829102000,-500.0,9.687e-05,2]
[426783889,1782829102000,-297953.958691,9.69e-05,2]
[426783890,1782829115000,-4424.51044288,9.69e-05,2]
[426783891,1782829128000,-304.23,9.639e-05,2]
[426783892,1782829182000,-384.51356845,8.89e-05,2]
[426783893,1782829190000,150.0,8.623e-05,2]
[426783894,1782829235000,-407.14,9.105e-05,2]
[426783896,1782829265000,-150.0,8.832e-05,2]
[426783897,1782829265000,-92.86,9.105e-05,2]
[426783899,1782829265000,-150.0,9.687e-05,2]
[426783900,1782829265000,-150.21447496,9.688e-05,2]
[426783905,1782829265000,-410.68552504,9.688e-05,2]
[426783902,1782829265000,-500.0,9.688e-05,2]
[426783901,1782829265000,-500.0,9.688e-05,2]
[426783903,1782829265000,-500.0,9.688e-05,2]
[426783904,1782829265000,-500.0,9.688e-05,2]
[426783898,1782829265000,-304.24,9.636e-05,2]
[426783906,1782829408000,150.0,0.0003013,30]
[426783907,1782829464000,155.0,0.00028548,30]
[426783908,1782829466000,155.0,0.00029548,30]
[426783909,1782829473000,150.0,0.0003013,30]
[426783910,1782829507000,150.0,0.0003013,30]
[426783912,1782829552000,-172.55,8.949e-05,2]
[426783913,1782829566000,316.0,0.00028548,30]
[426783914,1782829567000,316.0,0.00029548,30]
[426783916,1782829606000,-437.7335,9.005e-05,2]
[426783917,1782829612000,184.0,0.00028548,30]
[426783918,1782829614000,184.0,0.00029548,30]
[426783919,1782829631000,300.0,0.0001,3]
[426783920,1782829659000,-150.0,9.397e-05,2]
[426783921,1782829683000,151.0,0.00028548,30]
[426783922,1782829684000,151.0,0.00029548,30]
[426783923,1782829713000,-200.0,9.205e-05,2]
[426783928,1782829713000,-200.0,9.205e-05,2]
[426783925,1782829713000,-200.0,9.205e-05,2]
[426783927,1782829713000,-200.0,9.205e-05,2]
[426783926,1782829713000,-200.0,9.205e-05,2]
[426783924,1782829713000,-200.0,9.205e-05,2]
[426783930,1782829714000,158.0,0.00029548,30]
[426783929,1782829714000,158.0,0.00028548,30]
[426783931,1782829734000,-2677.99734867,9.58e-05,2]
[426783932,1782829743000,460.0,0.00028548,30]
[426783933,1782829744000,460.0,0.00029548,30]
[426783934,1782829766000,-1334.0,9.58e-05,2]
[426783935,1782829779000,-1334.0,9.58e-05,2]
[426783936,1782829793000,-5307.83018825,9.58e-05,2]
[426783937,1782829807000,-5307.83018825,9.58e-05,2]
[426783939,1782829821000,-3127.55237483,9.58e-05,2]
[426783996,1782829832000,-500.0,9.678e-05,2]
[426783990,1782829832000,-500.0,9.678e-05,2]
[426783988,1782829832000,-500.0,9.678e-05,2]
[426783987,1782829832000,-500.0,9.678e-05,2]
[426783999,1782829832000,-500.0,9.678e-05,2]
[426783982,1782829832000,-500.0,9.678e-05,2]
[426783994,1782829832000,-259.89309375,9.678e-05,2]
[426783980,1782829832000,-500.0,9.678e-05,2]
[426783991,1782829832000,-500.0,9.678e-05,2]
[426783992,1782829832000,-500.0,9.678e-05,2]
[426783998,1782829832000,-500.0,9.678e-05,2]
[426783993,1782829832000,-500.0,9.678e-05,2]
[426783997,1782829832000,-500.0,9.678e-05,2]
[426784000,1782829832000,-500.0,9.678e-05,2]
[426784003,1782829832000,-500.0,9.678e-05,2]
[426784001,1782829832000,-500.0,9.678e-05,2]
[426784002,1782829832000,-500.0,9.678e-05,2]
[426784008,1782829832000,-500.0,9.678e-05,2]
[426784007,1782829832000,-500.0,9.678e-05,2]
[426784011,1782829832000,-500.0,9.678e-05,2]
[426783995,1782829832000,-500.0,9.678e-05,2]
[426783977,1782829832000,-500.0,9.678e-05,2]
[426784009,1782829832000,-500.0,9.678e-05,2]
[426783975,1782829832000,-500.0,9.678e-05,2]
[426783961,1782829832000,-160.0,9.58e-05,2]
[426783963,1782829832000,-465.43461466,9.588e-05,2]
[426783962,1782829832000,-671.01538534,9.588e-05,2]
[426783964,1782829832000,-500.0,9.59e-05,2]
[426783970,1782829832000,-500.0,9.678e-05,2]
[426783966,1782829832000,-326.9,9.632e-05,2]
[426783972,1782829832000,-500.0,9.678e-05,2]
[426783971,1782829832000,-500.0,9.678e-05,2]
[426783973,1782829832000,-164.7067138,9.678e-05,2]
[426783967,1782829832000,-166.10636848,9.64e-05,2]
[426783965,1782829832000,-166.10636849,9.59e-05,2]
[426783969,1782829832000,-281.75365526,9.644e-05,2]
[426783968,1782829832000,-774.46634474,9.644e-05,2]
[426783974,1782829832000,-500.0,9.678e-05,2]
[426783976,1782829832000,-500.0,9.678e-05,2]
[426783986,1782829832000,-500.0,9.678e-05,2]
[426783985,1782829832000,-500.0,9.678e-05,2]
[426783984,1782829832000,-500.0,9.678e-05,2]
[426783978,1782829832000,-500.0,9.678e-05,2]
[426783979,1782829832000,-500.0,9.678e-05,2]
[426783981,1782829832000,-500.0,9.678e-05,2]
[426783983,1782829832000,-500.0,9.678e-05,2]
[426784005,1782829832000,-500.0,9.678e-05,2]
[426783989,1782829832000,-500.0,9.678e-05,2]
[426784006,1782829832000,-500.0,9.678e-05,2]
[426784037,1782829832000,-500.0,9.679e-05,2]
[426784036,1782829832000,-500.0,9.679e-05,2]
[426784042,1782829832000,-441.18296911,9.679e-05,2]
[426784038,1782829832000,-261.1200452,9.679e-05,2]
[426784041,1782829832000,-500.0,9.679e-05,2]
[426784040,1782829832000,-500.0,9.679e-05,2]
[426784039,1782829832000,-500.0,9.679e-05,2]
[426784043,1782829832000,-343.95414825,9.679e-05,2]
[426784044,1782829832000,-296.34795248,9.679e-05,2]
[426784046,1782829832000,-479.3,9.689e-05,2]
[426784045,1782829832000,-75852.09836261,9.68e-05,2]
[426784047,1782829832000,-166.10636848,9.689e-05,2]
[426784055,1782829832000,-7021.97,9.765e-05,2]
[426784056,1782829832000,-304.23,9.791e-05,2]
[426784048,1782829832000,-304.23,9.69e-05,2]
[426784051,1782829832000,-323.63,9.74e-05,2]
[426784053,1782829832000,-304.24,9.744e-05,2]
[426784052,1782829832000,-304.23,9.74e-05,2]
[426784050,1782829832000,-304.24,9.702e-05,2]
[426784054,1782829832000,-326.9,9.75e-05,2]
[426784004,1782829832000,-500.0,9.678e-05,2]
[426784031,1782829832000,-500.0,9.679e-05,2]
[426784032,1782829832000,-500.0,9.679e-05,2]
[426784049,1782829832000,-500.0,9.692e-05,2]
[426784034,1782829832000,-500.0,9.679e-05,2]
[426784035,1782829832000,-361.73961588,9.679e-05,2]
[426784012,1782829832000,-497.85463428,9.678e-05,2]
[426784013,1782829832000,-500.0,9.678e-05,2]
[426784014,1782829832000,-500.0,9.678e-05,2]
[426784024,1782829832000,-500.0,9.678e-05,2]
[426784015,1782829832000,-500.0,9.678e-05,2]
[426784019,1782829832000,-500.0,9.678e-05,2]
[426784018,1782829832000,-500.0,9.678e-05,2]
[426784010,1782829832000,-500.0,9.678e-05,2]
[426784017,1782829832000,-500.0,9.678e-05,2]
[426784016,1782829832000,-500.0,9.678e-05,2]
[426784022,1782829832000,-500.0,9.678e-05,2]
[426784020,1782829832000,-500.0,9.678e-05,2]
[426784023,1782829832000,-500.0,9.678e-05,2]
[426784026,1782829832000,-500.0,9.678e-05,2]
[426784025,1782829832000,-500.0,9.678e-05,2]
[426784029,1782829832000,-500.0,9.678e-05,2]
[426784027,1782829832000,-500.0,9.678e-05,2]
[426784028,1782829832000,-500.0,9.678e-05,2]
[426784030,1782829832000,-423.35421783,9.679e-05,2]
[426784021,1782829832000,-500.0,9.678e-05,2]
[426784033,1782829832000,-199.64910465,9.679e-05,2]
[426784063,1782829833000,-160.0,9.892e-05,2]
[426784062,1782829833000,-216.62538722,9.892e-05,2]
[426784066,1782829833000,-3769.18,9.901e-05,2]
[426784071,1782829833000,-157.387859,0.0001,2]
[426784057,1782829833000,-304.23,9.842e-05,2]
[426784060,1782829833000,-157.67,9.874e-05,2]
[426784059,1782829833000,-326.9,9.867e-05,2]
[426784058,1782829833000,-304.24,9.851e-05,2]
[426784064,1782829833000,-304.23,9.892e-05,2]
[426784061,1782829833000,-166.4,9.885e-05,2]
[426784065,1782829833000,-323.63,9.9e-05,2]
[426784077,1782829833000,-11.86976563,0.00010067,2]
[426784070,1782829833000,-304.23,9.993e-05,2]
[426784078,1782829833000,-304.23,0.00010095,2]
[426784068,1782829833000,-304.24,9.959e-05,2]
[426784075,1782829833000,-50.77590378,0.00010059,2]
[426784074,1782829833000,-272.85409622,0.00010059,2]
[426784079,1782829833000,-90.54394296,0.00010174,2]
[426784072,1782829833000,-56.45882327,0.00010044,2]
[426784073,1782829833000,-247.77117673,0.00010044,2]
[426784069,1782829833000,-309.19,9.965e-05,2]
[426784067,1782829833000,-304.23,9.943e-05,2]
[426784076,1782829833000,-292.37023437,0.00010067,2]
[426784091,1782829838000,-52.74,0.00010174,2]
[426784093,1782829838000,-172.55,0.00010441,2]
[426784094,1782829838000,-70.84215186,0.00010959,2]
[426784095,1782829838000,-95.81784814,0.00010959,2]
[426784089,1782829838000,-323.63,9.747e-05,2]
[426784092,1782829838000,-160.95605704,0.00010174,2]
[426784090,1782829838000,-323.63,0.00010067,2]
[426784096,1782829838000,-316.31447675,0.00010999,2]
[426784097,1782829838000,-14.32838971,0.00011053,2]
[426784103,1782829838000,-5902.4,0.00011069,2]
[426784100,1782829838000,-21795.49569603,0.00011069,2]
[426784105,1782829838000,-484.19611743,0.00011069,2]
[426784101,1782829838000,-2540.7981673,0.00011069,2]
[426784099,1782829838000,-2766.56412198,0.00011053,2]
[426784102,1782829838000,-9413.46518701,0.00011069,2]
[426784104,1782829838000,-33503.357581,0.00011069,2]
[426784098,1782829838000,-1351.90172374,0.00011053,2]
[426784116,1782829840000,-294.585,0.00011069,2]
[426784115,1782829840000,-23093.08099808,0.00011069,2]
[426784117,1782829840000,-790.5766307,0.00011069,2]
[426784134,1782829842000,-733.87205187,0.00011069,2]
[426784153,1782829843000,-1000.0,0.00011407,2]
[426784154,1782829843000,-190.95,0.00011428,2]
[426784155,1782829843000,-166.66,0.00011457,2]
[426784156,1782829843000,-823.42,0.00011522,2]
[426784161,1782829843000,-172.55,0.00011932,2]
[426784157,1782829843000,-166.66,0.00011623,2]
[426784165,1782829843000,-823.42,0.00012365,2]
[426784160,1782829843000,-823.42,0.00011803,2]
[426784158,1782829843000,-4636.4532722,0.00011635,2]
[426784162,1782829843000,-823.42,0.00012084,2]
[426784164,1782829843000,-157.67,0.00012343,2]
[426784149,1782829843000,-2031.16,0.00011298,2]
[426784167,1782829843000,-897.0,0.00013028,2]
[426784159,1782829843000,-166.66,0.00011789,2]
[426784151,1782829843000,-150.0,0.00011351,2]
[426784147,1782829843000,-823.42,0.00011241,2]
[426784150,1782829843000,-150.0,0.00011316,2]
[426784148,1782829843000,-166.66,0.00011291,2]
[426784145,1782829843000,-166.66,0.00011125,2]
[426784146,1782829843000,-166.09,0.00011212,2]
[426784143,1782829843000,-3000.0,0.00011069,2]
[426784144,1782829843000,-157.67,0.00011109,2]
[426784141,1782829843000,-3000.0,0.00011069,2]
[426784137,1782829843000,-3000.0,0.00011069,2]
[426784142,1782829843000,-3000.0,0.00011069,2]
[426784136,1782829843000,-3000.0,0.00011069,2]
[426784138,1782829843000,-3000.0,0.00011069,2]
[426784135,1782829843000,-46482.00257058,0.00011069,2]
[426784139,1782829843000,-3000.0,0.00011069,2]
[426784140,1782829843000,-3000.0,0.00011069,2]
[426784152,1782829843000,-150.0,0.00011393,2]
[426784166,1782829843000,-172.26,0.00012856,2]
[426784168,1782829843000,-172.55,0.00013424,2]
[426784170,1782829843000,-187.09,0.00013526,2]
[426784211,1782829843000,-211191.53333597,0.00015,2]
[426784209,1782829843000,-1055.0,0.00015,5]
[426784198,1782829843000,-885.0,0.000149,2]
[426784189,1782829843000,-200.0,0.0001488,2]
[426784204,1782829843000,-1196.50949015,0.000149,2]
[426784196,1782829843000,-151.0,0.000149,2]
[426784207,1782829843000,-1242.0,0.00015,5]
[426784191,1782829843000,-157.237,0.0001489,2]
[426784193,1782829843000,-892.0,0.000149,2]
[426784200,1782829843000,-2000.0,0.000149,2]
[426784163,1782829843000,-3475.8822834,0.00012089,2]
[426784184,1782829843000,-157.67,0.00014812,2]
[426784187,1782829843000,-1350.0,0.00014838,2]
[426784188,1782829843000,-450.0,0.00014838,7]
[426784186,1782829843000,-2398.159,0.00014828,2]
[426784202,1782829843000,-1500.0,0.000149,5]
[426784182,1782829843000,-225.91035299,0.00014569,2]
[426784169,1782829843000,-200.0,0.00013434,2]
[426784171,1782829843000,-157.67,0.00013577,2]
[426784185,1782829843000,-295.24320513,0.00014827,2]
[426784178,1782829843000,-151.2670858,0.00013966,2]
[426784173,1782829843000,-316.31447675,0.00013802,2]
[426784177,1782829843000,-168.74,0.00013932,2]
[426784172,1782829843000,-200.0,0.00013699,2]
[426784174,1782829843000,-255.37776718,0.00013894,2]
[426784175,1782829843000,-700.0,0.000139,5]
[426784179,1782829843000,-33066.7358443,0.00013993,2]
[426784181,1782829843000,-166.09,0.00014014,2]
[426784180,1782829843000,-32712.9160263,0.00013993,2]
[426784183,1782829843000,-1100.0,0.000148,5]
[426784176,1782829843000,-1477.94832904,0.00013915,2]
[426784267,1782829844000,-114.40424069,0.00011069,2]
[426784261,1782829844000,-888.675,0.00011069,2]
[426784256,1782829844000,-2681.81837546,0.00011069,2]
[426784254,1782829844000,-318.18162454,0.00011069,2]
[426784258,1782829844000,-1517.76162454,0.00011069,2]
[426784264,1782829844000,-593.56337546,0.00011069,2]
[426784269,1782829844000,-1342.5,0.00011069,2]
[426784272,1782829844000,-450.18404394,0.00011069,2]
[426784275,1782829844000,-618.47086119,0.00011069,2]
[426784298,1782829844000,-2433.59065624,0.00015,2]
[426784282,1782829844000,-3000.0,0.00011069,2]
[426784306,1782829844000,-1361.39009554,0.00015,2]
[426784293,1782829844000,-45530.23552705,0.00015,2]
[426784295,1782829844000,-5192.20972346,0.00015,2]
[426784280,1782829844000,-474.44085418,0.00011069,2]
[426784289,1782829844000,-1315.757158,0.00015,2]
[426784284,1782829844000,-3000.0,0.00011069,2]
[426784303,1782829844000,-374.83658851,0.00015,2]
[426784288,1782829844000,-1743.85577388,0.00011069,2]
[426784560,1782829846000,-1478.77264254,0.00015,2]
[426784552,1782829846000,-563.23033571,0.00015,2]
[426784541,1782829846000,-16916.23953937,0.00015,2]
[426784771,1782829849000,-1242.48,9.58e-05,2]
[426784769,1782829849000,-25630.65097553,9.58e-05,2]
[426784770,1782829849000,-83764.53228411,9.58e-05,2]
[426784768,1782829849000,-1490.89436833,9.58e-05,2]
[426784767,1782829849000,-450.0,9.58e-05,2]
[426784766,1782829849000,-4991.39890903,9.58e-05,2]
[426784828,1782829855000,345.05970689,8.78e-05,2]
[426784829,1782829861000,625.0,0.00028548,30]
[426784830,1782829862000,625.0,0.00029548,30]
[426784832,1782829947000,158.0,0.00028548,30]
[426784833,1782829948000,158.0,0.00029548,30]
[426784834,1782829958000,150.0,0.0003013,30]
[426784835,1782829983000,151.0,0.00028548,30]
[426784836,1782829984000,151.0,0.00029548,30]
[426784839,1782830001000,150.0,0.0003013,30]
[426784841,1782830040000,150.0,0.0003013,30]
[426784842,1782830041000,384.51356845,8.78e-05,2]
[426784843,1782830067000,15000.0,0.0003013,30]
[426784844,1782830116000,150.0,0.0003013,30]
[426784845,1782830124000,150.0,0.0003013,30]
[426784846,1782830126000,150.0,8.7e-05,2]
[426784847,1782830130000,150.0,0.0003013,30]
[426784848,1782830131000,150.0,0.0003013,30]
[426784849,1782830133000,150.0,0.0003013,30]
[426784850,1782830134000,150.0,0.0003013,30]
[426784851,1782830136000,150.0,0.0003013,30]
[426784852,1782830137000,150.0,0.0003013,30]
[426784853,1782830138000,150.0,0.0003013,30]
[426784864,1782830139000,-250.0,9.412e-05,2]
[426784866,1782830139000,-132.43292333,9.58e-05,2]
[426784856,1782830139000,-156.559674,9.246e-05,2]
[426784854,1782830139000,-150.0,8.969e-05,2]
[426784855,1782830139000,-500.0,9.146e-05,2]
[426784857,1782830139000,-150.0,9.293e-05,2]
[426784859,1782830139000,-150.0,9.353e-05,2]
[426784865,1782830139000,-150.0,9.579e-05,2]
[426784861,1782830139000,-2703.794,9.389e-05,2]
[426784858,1782830139000,-150.0,9.338e-05,2]
[426784862,1782830139000,-160.093,9.389e-05,2]
[426784863,1782830139000,-160.0,9.401e-05,2]
[426784860,1782830139000,-187.12040267,9.38e-05,2]
[426784867,1782830140000,-5000.0,9.58e-05,2]
[426784868,1782830141000,-5000.0,9.58e-05,2]
[426784869,1782830142000,-5000.0,9.58e-05,2]
[426784870,1782830143000,-5000.0,9.58e-05,2]
[426784871,1782830149000,-1777.81,9.58e-05,2]
[426784873,1782830242000,-500.0,9.146e-05,2]
[426784874,1782830242000,-150.0,9.293e-05,2]
[426784875,1782830242000,-199.5,9.337e-05,2]
[426784877,1782830242000,-150.0,9.579e-05,2]
[426784878,1782830242000,-500.0,9.579e-05,2]
[426784879,1782830242000,-500.0,9.579e-05,2]
[426784881,1782830242000,-180.58878062,9.579e-05,2]
[426784876,1782830242000,-216.69348827,9.38e-05,2]
[426784880,1782830242000,-603.21773111,9.579e-05,2]
[426784882,1782830309000,150.0,8.744e-05,2]
[426784883,1782830474000,-150.0,9.014e-05,2]
[426784886,1782830505000,-153.43854319,9.297e-05,2]
[426784885,1782830505000,-166.55145681,9.155e-05,2]
[426784884,1782830505000,-180.01,9.103e-05,2]
[426784887,1782830509000,-96.56145681,9.297e-05,2]
[426784888,1782830509000,-441.9876,9.479e-05,2]
[426784890,1782830609000,162.233,9.389e-05,2]
[426784889,1782830609000,3182.16,9.389e-05,2]
[426784891,1782830638000,349.50885089,8.78e-05,2]
[426784892,1782830639000,246.6329526,8.776e-05,2]
[426784893,1782830686000,253.12581692,8.78e-05,2]
[426784894,1782830687000,178.63090417,8.775e-05,2]
[426784895,1782830691000,155.0,0.0002853,30]
[426784896,1782830693000,155.0,0.0002953,30]
[426784897,1782830792000,284.0,0.0002853,30]
[426784898,1782830793000,284.0,0.0002953,30]
[426784899,1782830796000,150.0,9.288e-05,2]
[426784900,1782830834000,300.0,0.000109,3]
[426784901,1782830839000,351.0,0.0002853,30]
[426784902,1782830840000,351.0,0.0002953,30]
[426784903,1782830871000,200.0,9.101e-05,2]
[426784906,1782830913000,151.0,0.0002853,30]
[426784907,1782830915000,151.0,0.0002953,30]
[426784909,1782830932000,25364.15941861,9.476e-05,2]
[426784910,1782830938000,162.0,0.0002853,30]
[426784911,1782830952000,-156.55967431,9.476e-05,2]
[426784912,1782830953000,-177.82,9.476e-05,2]
[426784913,1782830953000,-437.73351373,9.476e-05,2]
[426784914,1782830953000,-285.15955509,9.476e-05,2]
[426784915,1782830953000,-911.58842964,9.476e-05,2]
[426784916,1782830968000,414.0,0.0002853,30]
[426784917,1782830969000,414.0,0.0002953,30]
[426784924,1782831009000,-500.0,9.575e-05,2]
[426784923,1782831009000,-500.0,9.575e-05,2]
[426784922,1782831009000,-500.0,9.575e-05,2]
[426784921,1782831009000,-304.47565974,9.575e-05,2]
[426784920,1782831009000,-250.0,9.526e-05,2]
[426784919,1782831009000,-83.83668012,9.476e-05,2]
[426784918,1782831009000,-3562.4931285,9.476e-05,2]
[426784925,1782831010000,-500.0,9.575e-05,2]
[426784926,1782831010000,-460.9231322,9.575e-05,2]
[426784928,1782831010000,-36.74234356,9.575e-05,2]
[426784929,1782831010000,-500.0,9.575e-05,2]
[426784930,1782831010000,-500.0,9.575e-05,2]
[426784927,1782831010000,-463.25765644,9.575e-05,2]
[426784932,1782831010000,-500.0,9.575e-05,2]
[426784933,1782831010000,-500.0,9.575e-05,2]
[426784934,1782831010000,-500.0,9.575e-05,2]
[426784935,1782831010000,-405.72336233,9.575e-05,2]
[426784937,1782831010000,-435.46659031,9.575e-05,2]
[426784936,1782831010000,-94.27663767,9.575e-05,2]
[426784931,1782831010000,-620.02742261,9.575e-05,2]
[426784964,1782831032000,-304.61,9.736e-05,2]
[426784963,1782831032000,-306.95,9.721e-05,2]
[426784965,1782831032000,-316.83,9.758e-05,2]
[426784962,1782831032000,-160.0,9.72e-05,2]
[426784968,1782831032000,-304.61,9.771e-05,2]
[426784978,1782831032000,-500.0,9.949e-05,2]
[426784969,1782831032000,-306.95,9.804e-05,2]
[426784971,1782831032000,-304.61,9.842e-05,2]
[426784958,1782831032000,-306.95,9.679e-05,2]
[426784974,1782831032000,-306.95,9.888e-05,2]
[426784970,1782831032000,-304.61,9.807e-05,2]
[426784977,1782831032000,-304.61,9.949e-05,2]
[426784973,1782831032000,-304.61,9.878e-05,2]
[426784972,1782831032000,-306.95,9.846e-05,2]
[426784967,1782831032000,-306.95,9.763e-05,2]
[426784976,1782831032000,-306.95,9.929e-05,2]
[426784956,1782831032000,-304.61,9.665e-05,2]
[426784961,1782831032000,-313.49,9.713e-05,2]
[426784945,1782831032000,-500.0,9.575e-05,2]
[426784944,1782831032000,-64.53340969,9.575e-05,2]
[426784946,1782831032000,-500.0,9.575e-05,2]
[426784948,1782831032000,-500.0,9.575e-05,2]
[426784947,1782831032000,-500.0,9.575e-05,2]
[426784951,1782831032000,-216.62538722,9.61e-05,2]
[426784950,1782831032000,-306.95,9.596e-05,2]
[426784952,1782831032000,-313.49,9.625e-05,2]
[426784953,1782831032000,-304.61,9.629e-05,2]
[426784949,1782831032000,-304.61,9.594e-05,2]
[426784954,1782831032000,-316.83,9.634e-05,2]
[426784955,1782831032000,-306.95,9.638e-05,2]
[426784966,1782831032000,-313.49,9.758e-05,2]
[426784957,1782831032000,-313.49,9.669e-05,2]
[426784959,1782831032000,-316.83,9.696e-05,2]
[426784960,1782831032000,-304.61,9.7e-05,2]
[426784979,1782831032000,-306.95,9.971e-05,2]
[426785003,1782831032000,-157.44,0.00011226,2]
[426784980,1782831032000,-304.61,9.984e-05,2]
[426784995,1782831032000,-500.0,0.00010533,2]
[426784997,1782831032000,-157.44,0.00010691,2]
[426785002,1782831032000,-166.66,0.00011178,2]
[426785004,1782831032000,-150.0,0.00011233,2]
[426785001,1782831032000,-1838.72573059,0.00011099,2]
[426785008,1782831032000,-180.01,0.00011379,2]
[426785000,1782831032000,-166.66,0.00011068,2]
[426785009,1782831032000,-13073.0835762,0.00011385,2]
[426785012,1782831032000,-9161.94676927,0.00011385,2]
[426785013,1782831032000,-959.58057949,0.00011385,2]
[426785011,1782831032000,-34154.00304101,0.00011385,2]
[426785015,1782831032000,-472.46294475,0.00011385,2]
[426785014,1782831032000,-3937.06871101,0.00011385,2]
[426785016,1782831032000,-1605.16,0.00011385,2]
[426785010,1782831032000,-47730.82367327,0.00011385,2]
[426784998,1782831032000,-173.15,0.00010941,2]
[426784999,1782831032000,-166.66,0.00010959,2]
[426785007,1782831032000,-176.43,0.00011325,2]
[426784983,1782831032000,-306.95,0.00010054,2]
[426784981,1782831032000,-306.95,0.00010012,2]
[426784982,1782831032000,-304.61,0.0001002,2]
[426784994,1782831032000,-383.41546002,0.00010533,2]
[426784985,1782831032000,-304.61,0.00010055,2]
[426784992,1782831032000,-200.0,0.00010524,2]
[426784987,1782831032000,-2255.92952286,0.000102,2]
[426784991,1782831032000,-4000.0,0.00010424,2]
[426784988,1782831032000,-948.6281594,0.00010222,2]
[426784990,1782831032000,-250.0,0.00010424,2]
[426784993,1782831032000,-193.0,0.00010533,2]
[426784989,1782831032000,-14103.3524247,0.00010303,2]
[426784996,1782831032000,-250.0,0.00010533,2]
[426785005,1782831032000,-1838.72573059,0.00011283,2]
[426785006,1782831032000,-166.66,0.00011288,2]
[426785017,1782831032000,-822.2538549,0.00011385,2]
[426784975,1782831032000,-304.61,9.913e-05,2]
[426785018,1782831033000,154.0,0.0002853,30]
[426785019,1782831035000,154.0,0.0002953,30]
[426785027,1782831038000,-3173.45,0.00011385,2]
[426785026,1782831038000,-623.5,0.00011385,2]
[426785051,1782831039000,-602.7285142,0.00011496,2]
[426785053,1782831039000,-3762.4275268,0.00011496,2]
[426785045,1782831039000,-976.1868501,0.00011385,2]
[426785056,1782831039000,-166.66,0.00011507,2]
[426785058,1782831039000,-150.0,0.0001156,2]
[426785047,1782831039000,-166.66,0.00011397,2]
[426785049,1782831039000,-1320.2246357,0.00011496,2]
[426785063,1782831039000,-380.84,0.00011659,2]
[426785061,1782831039000,-500.0,0.0001164,2]
[426785065,1782831039000,-157.44,0.00011761,2]
[426785074,1782831039000,-1720.96766021,0.00013085,2]
[426785067,1782831039000,-1409.55,0.00011825,2]
[426785071,1782831039000,-150.0,0.00013041,2]
[426785068,1782831039000,-1015.58,0.00012855,2]
[426785084,1782831041000,-117.75807038,0.00013085,2]
[426785089,1782831041000,-314.36135087,0.00014128,2]
[426785085,1782831041000,-180.01,0.00013655,2]
[426785088,1782831041000,-200.0,0.00013699,2]
[426785086,1782831041000,-189.42057875,0.0001366,2]
[426785090,1782831041000,-40.99043231,0.00014128,2]
[426785087,1782831041000,-173.15,0.00013676,2]
[426785097,1782831042000,-293.66889995,0.00014504,2]
[426785096,1782831042000,-385.31970786,0.00014504,2]
[426785094,1782831042000,-114.03970786,0.00014504,2]
[426785093,1782831042000,-127.28821682,0.00014128,2]
[426785095,1782831042000,-885.95029214,0.00014504,2]
[426785092,1782831042000,-258.750747,0.00013472,2]
[426785091,1782831042000,-839.739253,0.00013472,2]